bitfinex-derivatives/quotes_BNBF0:USTF0_20260110
["timestamp","ask_amount","ask_price","bid_price","bid_amount"]
[1768067234429,0.19122981,910.54,909.24,0.69209009]
[1768067234634,0.19122981,910.54,909.25,0.69209009]
[1768067234834,0.19122981,910.54,909.26,0.69209009]
[1768067235034,0.19122981,910.54,909.27,0.69209009]
[1768067235239,0.19122981,910.54,909.28,0.69209009]
[1768067235436,0.19122981,910.54,909.29,0.69209009]
[1768067235633,0.19122981,910.54,909.3,0.69209009]
[1768067235833,0.19122981,910.54,909.16,2.07]
[1768067236137,0.19122981,910.54,909.17,0.69198836]
[1768067236331,0.19122981,910.54,909.18,0.69198836]
[1768067236534,0.19122981,910.54,909.19,0.69198836]
[1768067236738,0.19122981,910.54,909.2,0.69198836]
[1768067236934,0.19122981,910.54,909.21,0.69198836]
[1768067237138,0.19122981,910.54,909.22,0.69198836]
[1768067237435,0.19122981,910.54,909.23,0.69198836]
[1768067237735,0.19122981,910.54,909.24,0.69198836]
[1768067238038,0.19122981,910.54,909.25,0.69198836]
[1768067238234,0.19122981,910.54,909.26,0.69198836]
[1768067238436,0.19122981,910.54,909.27,0.69198836]
[1768067238634,0.19122981,910.54,909.28,0.69198836]
[1768067238838,0.19122981,910.54,909.29,0.69198836]
[1768067239138,0.19122981,910.54,909.0,0.82469054]
[1768067239338,0.19122981,910.54,909.01,0.69180951]
[1768067239539,0.19122981,910.54,909.02,0.69180951]
[1768067239736,0.19122981,910.54,909.03,0.69180951]
[1768067239941,0.19122981,910.54,909.04,0.69180951]
[1768067240138,0.19122981,910.54,909.05,0.69180951]
[1768067240343,0.19122981,910.54,909.06,0.69180951]
[1768067240538,0.19122981,910.54,909.07,0.69180951]
[1768067240738,0.19122981,910.54,909.08,0.69180951]
[1768067240944,0.19122981,910.54,909.09,0.69180951]
[1768067241143,0.19122981,910.54,909.1,0.69180951]
[1768067241339,0.19122981,910.54,909.11,0.69180951]
[1768067241542,0.19122981,910.54,909.12,0.69180951]
[1768067241738,0.19122981,910.54,909.13,0.69180951]
[1768067241939,0.19122981,910.54,909.14,0.69180951]
[1768067242143,0.19122981,910.54,909.15,0.69180951]
[1768067242438,0.19122981,910.54,909.16,0.69180951]
[1768067242643,0.19122981,910.54,909.17,0.69180951]
[1768067242844,0.19122981,910.54,909.18,0.69180951]
[1768067243139,0.19122981,910.54,909.19,0.69180951]
[1768067243344,0.19122981,910.54,909.2,0.69180951]
[1768067243640,0.19122981,910.54,909.21,0.69180951]
[1768067243842,0.19122981,910.54,909.22,0.69180951]
[1768067244042,0.19122981,910.54,909.23,0.69180951]
[1768067244241,0.19122981,910.54,909.24,0.69180951]
[1768067244445,0.19122981,910.54,909.1,1.626]
[1768067244642,0.19122981,910.54,909.11,0.6915926]
[1768067244849,0.19122981,910.54,909.12,0.6915926]
[1768067245047,0.19122981,910.54,909.13,0.6915926]
[1768067245250,0.19122981,910.54,909.14,0.6915926]
[1768067245447,0.19122981,910.54,909.15,0.6915926]
[1768067245748,0.19122981,910.54,909.16,0.6915926]
[1768067245941,0.19122981,910.54,909.17,0.6915926]
[1768067246145,0.19122981,910.54,909.18,0.6915926]
[1768067246342,0.19122981,910.54,909.19,0.6915926]
[1768067246547,0.19122981,910.54,909.2,0.6915926]
[1768067246847,0.19122981,910.54,909.21,0.6915926]
[1768067247043,0.19122981,910.54,909.22,0.6915926]
[1768067247245,0.19122981,910.54,909.23,0.6915926]
[1768067247447,0.19122981,910.54,909.1,1.626]
[1768067247448,0.19122981,910.54,909.24,0.6915926]
[1768067247645,0.19122981,910.54,909.1,1.626]
[1768067247944,0.19122981,910.54,909.11,0.69171]
[1768067248144,0.19122981,910.54,909.12,0.69171]
[1768067248343,0.19122981,910.54,909.13,0.69171]
[1768067248548,0.19122981,910.54,909.14,0.69171]
[1768067248745,0.19122981,910.54,909.15,0.69171]
[1768067249055,0.19122981,910.54,909.16,0.69171]
[1768067249254,0.19122981,910.54,909.17,0.69171]
[1768067249454,0.19122981,910.54,909.18,0.69171]
[1768067249754,0.19122981,910.54,909.19,0.69171]
[1768067250044,0.19122981,910.54,909.1,1.626]
[1768067250045,0.19122981,910.54,909.2,0.69171]
[1768067250244,0.19122981,910.54,909.21,0.69171]
[1768067250444,0.19122981,910.54,909.22,0.69171]
[1768067250650,0.19122981,910.54,909.23,0.69171]
[1768067250846,0.19122981,910.54,909.24,0.69171]
[1768067251046,0.19122981,910.54,909.1,1.626]
[1768067251047,0.19122981,910.54,909.25,0.69171]
[1768067251255,0.19122981,910.54,909.26,0.69171]
[1768067251445,0.19122981,910.54,909.1,1.626]
[1768067251744,0.19122981,910.54,909.11,0.6921451]
[1768067251947,0.19122981,910.54,909.12,0.6921451]
[1768067252146,0.19122981,910.54,909.13,0.6921451]
[1768067252451,0.19122981,910.54,909.14,0.6921451]
[1768067252647,0.19122981,910.54,909.15,0.6921451]
[1768067252857,0.19122981,910.54,909.16,0.6921451]
[1768067253048,0.19122981,910.54,909.17,0.6921451]
[1768067253252,0.19122981,910.54,909.18,0.6921451]
[1768067253549,0.19122981,910.54,909.1,1.626]
[1768067253550,0.19122981,910.54,909.19,0.6921451]
[1768067253746,0.19122981,910.54,909.2,0.6921451]
[1768067253949,0.19122981,910.54,909.21,0.6921451]
[1768067254152,0.19122981,910.54,909.22,0.6921451]
[1768067254349,0.19122981,910.54,909.23,0.6921451]
[1768067254547,0.19122981,910.54,909.11,0.82469054]
[1768067254548,0.19122981,910.54,909.24,0.6921451]
[1768067254757,0.19122981,910.54,909.25,0.6921451]
[1768067254950,0.19122981,910.54,909.26,0.6921451]
[1768067255156,0.19122981,910.54,909.27,0.6921451]
[1768067255356,0.19122981,910.54,909.28,0.6921451]
[1768067255655,0.19122981,910.54,909.29,0.6921451]
[1768067255852,0.19122981,910.54,909.3,0.6921451]
[1768067256055,0.19122981,910.54,909.31,0.6921451]
[1768067256357,0.19122981,910.54,909.32,0.6921451]
[1768067256559,0.19122981,910.54,909.33,0.6921451]
[1768067256757,0.19122981,910.54,909.34,0.6921451]
[1768067256957,0.19122981,910.54,909.35,0.6921451]
[1768067257160,0.19122981,910.54,909.36,0.6921451]
[1768067257454,0.19122981,910.54,909.37,0.6921451]
[1768067257656,0.19122981,910.54,909.38,0.6921451]
[1768067257858,0.19122981,910.54,909.39,0.6921451]
[1768067258058,0.19122981,910.54,909.4,0.6921451]
[1768067258255,0.19122981,910.54,909.41,0.6921451]
[1768067258460,0.19122981,910.54,909.42,0.6921451]
[1768067258657,0.19122981,910.54,909.13,0.82469054]
[1768067258856,0.19122981,910.54,909.14,0.69415683]
[1768067259062,0.19122981,910.54,909.15,0.69415683]
[1768067259361,0.19122981,910.54,909.16,0.69415683]
[1768067259556,0.19122981,910.54,909.17,0.69415683]
[1768067259758,0.19122981,910.54,909.18,0.69415683]
[1768067260056,0.19122981,910.54,909.19,0.69415683]
[1768067260359,0.19122981,910.54,909.2,0.69415683]
[1768067260559,0.19122981,910.54,909.21,0.69415683]
[1768067260758,0.19122981,910.54,909.22,0.69415683]
[1768067260959,0.19122981,910.54,909.23,0.69415683]
[1768067261158,0.19122981,910.54,909.24,0.69415683]
[1768067261461,0.19122981,910.54,909.25,0.69415683]
[1768067261658,0.19122981,910.54,909.26,0.69415683]
[1768067261959,0.19122981,910.54,909.27,0.69415683]
[1768067262260,0.19122981,910.54,909.28,0.69415683]
[1768067262459,0.19122981,910.54,909.29,0.69415683]
[1768067262659,0.19122981,910.54,909.3,0.69415683]
[1768067262858,0.19122981,910.54,909.31,0.69415683]
[1768067263160,0.19122981,910.54,909.32,0.69415683]
[1768067263462,0.19122981,910.54,909.33,0.69415683]
[1768067263659,0.19122981,910.54,909.34,0.69415683]
[1768067263860,0.19122981,910.54,909.35,0.69415683]
[1768067264163,0.19122981,910.54,909.36,0.69415683]
[1768067264360,0.19122981,910.54,909.37,0.69415683]
[1768067264559,0.19122981,910.54,909.38,0.69415683]
[1768067264763,0.19122981,910.54,909.39,0.69415683]
[1768067265060,0.19122981,910.54,909.4,0.69415683]
[1768067265363,0.19122981,910.54,909.11,0.82469054]
[1768067265562,0.19122981,910.54,909.12,0.69415736]
[1768067265761,0.19122981,910.54,909.13,0.69415736]
[1768067265960,0.19122981,910.54,909.14,0.69415736]
[1768067266159,0.19122981,910.54,909.15,0.69415736]
[1768067266462,0.19122981,910.54,909.16,0.69415736]
[1768067266662,0.19122981,910.54,909.17,0.69415736]
[1768067266860,0.19122981,910.54,909.18,0.69415736]
[1768067267058,0.19122981,910.54,909.19,0.69415736]
[1768067267262,0.19122981,910.54,909.2,0.69415736]
[1768067267462,0.19122981,910.54,909.21,0.69415736]
[1768067267658,0.19122981,910.54,909.22,0.69415736]
[1768067267858,0.19122981,910.54,909.23,0.69415736]
[1768067268060,0.19122981,910.54,909.24,0.69415736]
[1768067268260,0.19122981,910.54,909.25,0.69415736]
[1768067268460,0.19122981,910.54,909.26,0.69415736]
[1768067268664,0.19122981,910.54,909.27,0.69415736]
[1768067268862,0.19122981,910.54,909.28,0.69415736]
[1768067269066,0.19122981,910.54,909.29,0.69415736]
[1768067269366,0.19122981,910.54,909.3,0.69415736]
[1768067269561,0.19122981,910.54,909.31,0.69415736]
[1768067269766,0.19122981,910.54,909.32,0.69415736]
[1768067269963,0.19122981,910.54,909.33,0.69415736]
[1768067270163,0.19122981,910.54,909.34,0.69415736]
[1768067270367,0.19122981,910.54,909.35,0.69415736]
[1768067270663,0.19122981,910.54,909.36,0.69415736]
[1768067270963,0.19122981,910.54,909.15,0.82469054]
[1768067270964,0.19122981,910.54,909.37,0.69415736]
[1768067271168,0.19122981,910.54,909.38,0.69415736]
[1768067271365,0.19122981,910.54,909.39,0.69415736]
[1768067271566,0.19122981,910.54,909.4,0.69415736]
[1768067271765,0.19122981,910.54,909.41,0.69415736]
[1768067271966,0.19122981,910.54,909.42,0.69415736]
[1768067272165,0.19122981,910.54,909.43,0.69415736]
[1768067272368,0.19122981,910.54,909.44,0.69415736]
[1768067272568,0.19122981,910.54,909.45,0.69415736]
[1768067272864,0.19122981,910.54,909.46,0.69415736]
[1768067273069,0.19122981,910.54,909.47,0.69415736]
[1768067273367,0.19122981,910.54,909.48,0.69415736]
[1768067273571,0.19122981,910.54,909.19,0.82469054]
[1768067273865,0.19122981,910.54,909.2,0.69571077]
[1768067274069,0.19122981,910.54,909.21,0.69571077]
[1768067274366,0.19122981,910.54,909.22,0.69571077]
[1768067274665,0.19122981,910.54,909.23,0.69571077]
[1768067274870,0.19122981,910.54,909.24,0.69571077]
[1768067275069,0.19122981,910.54,909.18,0.82469054]
[1768067275070,0.19122981,910.54,909.25,0.69571077]
[1768067275266,0.19122981,910.54,909.26,0.69571077]
[1768067275470,0.19122981,910.54,909.27,0.69571077]
[1768067275670,0.19122981,910.54,909.28,0.69571077]
[1768067275871,0.19122981,910.54,909.29,0.69571077]
[1768067276069,0.19122981,910.54,909.18,0.82469054]
[1768067276070,0.19122981,910.54,909.3,0.69571077]
[1768067276268,0.19122981,910.54,909.31,0.69571077]
[1768067276468,0.19122981,910.54,909.32,0.69571077]
[1768067276672,0.19122981,910.54,909.33,0.69571077]
[1768067276870,0.19122981,910.54,909.18,0.82469054]
[1768067276871,0.19122981,910.54,909.34,0.69571077]
[1768067277169,0.19122981,910.54,909.35,0.69571077]
[1768067277470,0.19122981,910.54,909.36,0.69571077]
[1768067277671,0.19122981,910.54,909.37,0.69571077]
[1768067277870,0.19122981,910.54,909.38,0.69571077]
[1768067278068,0.19122981,910.54,909.18,0.82469054]
[1768067278069,0.19122981,910.54,909.39,0.69571077]
[1768067278273,0.19122981,910.54,909.4,0.69571077]
[1768067278574,0.19122981,910.54,909.41,0.69571077]
[1768067278771,0.19122981,910.54,909.42,0.69571077]
[1768067278974,0.19122981,910.54,909.43,0.69571077]
[1768067279274,0.19122981,910.54,909.44,0.69571077]
[1768067279569,0.19122981,910.54,909.45,0.69571077]
[1768067279774,0.19122981,910.54,909.46,0.69571077]
[1768067279974,0.19122981,910.54,909.47,0.69571077]
[1768067280278,0.19122981,910.54,909.18,0.82469054]
[1768067280579,0.19122981,910.54,909.19,0.69577553]
[1768067280770,0.19122981,910.54,909.2,0.69577553]
[1768067280973,0.19122981,910.54,909.21,0.69577553]
[1768067281173,0.19122981,910.54,909.22,0.69577553]
[1768067281368,0.19122981,910.54,909.23,0.69577553]
[1768067281571,0.19122981,910.54,909.24,0.69577553]
[1768067281875,0.19122981,910.54,909.25,0.69577553]
[1768067282070,0.19122981,910.54,909.26,0.69577553]
[1768067282270,0.19122981,910.54,909.27,0.69577553]
[1768067282474,0.19122981,910.54,909.28,0.69577553]
[1768067282776,0.19122981,910.54,909.29,0.69577553]
[1768067283070,0.19122981,910.54,909.3,0.69577553]
[1768067283278,0.19122981,910.54,909.31,0.69577553]
[1768067283476,0.19122981,910.54,909.32,0.69577553]
[1768067283773,0.19122981,910.54,909.33,0.69577553]
[1768067283974,0.19122981,910.54,909.34,0.69577553]
[1768067284177,0.19122981,910.54,909.35,0.69577553]
[1768067284375,0.19122981,910.54,909.36,0.69577553]
[1768067284675,0.19122981,910.54,909.37,0.69577553]
[1768067284870,0.19122981,910.54,909.38,0.69577553]
[1768067285080,0.19122981,910.54,909.39,0.69577553]
[1768067285376,0.19122981,910.54,909.4,0.69577553]
[1768067285576,0.19122981,910.54,909.41,0.69577553]
[1768067285776,0.19122981,910.54,909.42,0.69577553]
[1768067285976,0.19122981,910.54,909.43,0.69577553]
[1768067286171,0.19122981,910.54,909.44,0.69577553]
[1768067286375,0.19122981,910.54,909.45,0.69577553]
[1768067286675,0.19122981,910.54,909.46,0.69577553]
[1768067286874,0.19122981,910.54,909.47,0.69577553]
[1768067287172,0.19122981,910.54,909.48,0.69577553]
[1768067287371,0.19122981,910.54,909.49,0.69577553]
[1768067287579,0.19122981,910.54,909.2,0.82469054]
[1768067287774,0.19122981,910.54,909.21,0.6962004]
[1768067287975,0.19122981,910.54,909.22,0.6962004]
[1768067288173,0.19122981,910.54,909.23,0.6962004]
[1768067288377,0.19122981,910.54,909.24,0.6962004]
[1768067288576,0.19122981,910.54,909.2,0.82469054]
[1768067288577,0.19122981,910.54,909.25,0.6962004]
[1768067288777,0.19122981,910.54,909.26,0.6962004]
[1768067288978,0.19122981,910.54,909.27,0.6962004]
[1768067289177,0.19122981,910.54,909.28,0.6962004]
[1768067289376,0.19122981,910.54,909.29,0.6962004]
[1768067289578,0.19122981,910.54,909.3,0.6962004]
[1768067289776,0.19122981,910.54,909.31,0.6962004]
[1768067289981,0.19122981,910.54,909.32,0.6962004]
[1768067290184,0.19122981,910.54,909.33,0.6962004]
[1768067290378,0.19122981,910.54,909.34,0.6962004]
[1768067290584,0.19122981,910.54,909.35,0.6962004]
[1768067290788,0.19122981,910.54,909.36,0.6962004]
[1768067290978,0.19122981,910.54,909.37,0.6962004]
[1768067291185,0.19122981,910.54,909.38,0.6962004]
[1768067291385,0.19122981,910.54,909.39,0.6962004]
[1768067291585,0.19122981,910.54,909.4,0.6962004]
[1768067291782,0.19122981,910.54,909.41,0.6962004]
[1768067291988,0.19122981,910.54,909.42,0.6962004]
[1768067292182,0.19122981,910.54,909.43,0.6962004]
[1768067292494,0.19122981,910.54,909.44,0.6962004]
[1768067292697,0.19122981,910.54,909.45,0.6962004]
[1768067292892,0.19122981,910.54,909.46,0.6962004]
[1768067293095,0.19122981,910.54,909.19,0.82469054]
[1768067293096,0.19122981,910.54,909.47,0.6962004]
[1768067293290,0.19122981,910.54,909.48,0.6962004]
[1768067293488,0.19122981,910.54,909.19,0.82469054]
[1768067293687,0.19122981,910.54,909.2,0.69619911]
[1768067293893,0.19122981,910.54,909.21,0.69619911]
[1768067294094,0.19122981,910.54,909.1,1.626]
[1768067294095,0.19122981,910.54,909.22,0.69619911]
[1768067294390,0.19122981,910.54,909.23,0.69619911]
[1768067294594,0.19122981,910.54,909.24,0.69619911]
[1768067294892,0.19122981,910.54,909.25,0.69619911]
[1768067295093,0.19122981,910.54,909.26,0.69619911]
[1768067295393,0.19122981,910.54,909.27,0.69619911]
[1768067295592,0.19122981,910.54,909.28,0.69619911]
[1768067295791,0.19122981,910.54,909.29,0.69619911]
[1768067295989,0.19122981,910.54,909.3,0.69619911]
[1768067296191,0.19122981,910.54,909.31,0.69619911]
[1768067296393,0.19122981,910.54,909.32,0.69619911]
[1768067296593,0.19122981,910.54,909.33,0.69619911]
[1768067296788,0.19122981,910.54,909.34,0.69619911]
[1768067296992,0.19122981,910.54,909.35,0.69619911]
[1768067297194,0.19122981,910.54,909.36,0.69619911]
[1768067297490,0.19122981,910.54,909.07,0.82469054]
[1768067297790,0.19122981,910.54,909.08,0.69618403]
[1768067297988,0.19122981,910.54,909.09,0.69618403]
[1768067298189,0.19122981,910.54,909.1,0.69618403]
[1768067298388,0.19122981,910.54,909.11,0.69618403]
[1768067298690,0.19122981,910.54,909.12,0.69618403]
[1768067298893,0.19122981,910.54,909.13,0.69618403]
[1768067299094,0.19122981,910.54,909.14,0.69618403]
[1768067299394,0.19122981,910.54,909.15,0.69618403]
[1768067299592,0.19122981,910.54,909.16,0.69618403]
[1768067299792,0.19122981,910.54,909.17,0.69618403]
[1768067299993,0.19122981,910.54,909.18,0.69618403]
[1768067300193,0.19122981,910.54,909.19,0.69618403]
[1768067300392,0.19122981,910.54,909.2,0.69618403]
[1768067300593,0.19122981,910.54,909.21,0.69618403]
[1768067300796,0.19122981,910.54,909.22,0.69618403]
[1768067300994,0.19122981,910.54,909.23,0.69618403]
[1768067301293,0.19122981,910.54,909.24,0.69618403]
[1768067301492,0.19122981,910.54,909.25,0.69618403]
[1768067301696,0.19122981,910.54,909.26,0.69618403]
[1768067301898,0.19122981,910.54,909.27,0.69618403]
[1768067302193,0.19122981,910.54,909.28,0.69618403]
[1768067302398,0.19122981,910.54,909.29,0.69618403]
[1768067302694,0.19122981,910.54,909.3,0.69618403]
[1768067302894,0.19122981,910.54,909.31,0.69618403]
[1768067303092,0.19122981,910.54,909.32,0.69618403]
[1768067303296,0.19122981,910.54,909.33,0.69618403]
[1768067303497,0.19122981,910.54,909.34,0.69618403]
[1768067303793,0.19122981,910.54,909.35,0.69618403]
[1768067304096,0.19122981,910.54,909.36,0.69618403]
[1768067304295,0.19122981,910.54,909.37,0.69618403]
[1768067304499,0.19122981,910.54,909.38,0.69618403]
[1768067304700,0.19122981,910.54,909.39,0.69618403]
[1768067304900,0.19122981,910.54,909.4,0.69618403]
[1768067305101,0.19122981,910.54,909.41,0.69618403]
[1768067305399,0.19122981,910.54,909.42,0.69618403]
[1768067305600,0.19122981,910.54,909.43,0.69618403]
[1768067305798,0.19122981,910.54,909.44,0.69618403]
[1768067306001,0.19122981,910.54,909.45,0.69618403]
[1768067306202,0.19122981,910.54,909.46,0.69618403]
[1768067306399,0.19122981,910.54,909.47,0.69618403]
[1768067306603,0.19122981,910.54,909.48,0.69618403]
[1768067306804,0.19122981,910.54,909.13,0.82469054]
[1768067307104,0.19122981,910.54,909.14,0.69621576]
[1768067307303,0.19122981,910.54,909.15,0.69621576]
[1768067307504,0.19122981,910.54,909.16,0.69621576]
[1768067307700,0.19122981,910.54,909.17,0.69621576]
[1768067307900,0.19122981,910.54,909.18,0.69621576]
[1768067308102,0.19122981,910.54,909.19,0.69621576]
[1768067308403,0.19122981,910.54,909.2,0.69621576]
[1768067308602,0.19122981,910.54,909.1,2.117]
[1768067308603,0.19122981,910.54,909.21,0.69621576]
[1768067308799,0.19122981,910.54,909.22,0.69621576]
[1768067309004,0.19122981,910.54,909.23,0.69621576]
[1768067309203,0.19122981,910.54,909.24,0.69621576]
[1768067309501,0.19122981,910.54,909.25,0.69621576]
[1768067309705,0.19122981,910.54,909.26,0.69621576]
[1768067309907,0.19122981,910.54,909.27,0.69621576]
[1768067310213,0.19122981,910.54,909.28,0.69621576]
[1768067310507,0.19122981,910.54,909.29,0.69621576]
[1768067310708,0.19122981,910.54,909.3,0.69621576]
[1768067311007,0.19122981,910.54,909.31,0.69621576]
[1768067311207,0.19122981,910.54,909.32,0.69621576]
[1768067311407,0.19122981,910.54,909.33,0.69621576]
[1768067311605,0.19122981,910.54,909.34,0.69621576]
[1768067311804,0.19122981,910.54,909.35,0.69621576]
[1768067312103,0.19122981,910.54,909.36,0.69621576]
[1768067312307,0.19122981,910.54,909.37,0.69621576]
[1768067312505,0.19122981,910.54,909.38,0.69621576]
[1768067312706,0.19122981,910.54,909.1,2.117]
[1768067312906,0.19122981,910.54,909.11,0.69575393]
[1768067313206,0.19122981,910.54,909.12,0.69575393]
[1768067313504,0.19122981,910.54,909.1,2.117]
[1768067313505,0.19122981,910.54,909.13,0.69575393]
[1768067313709,0.19122981,910.54,909.14,0.69575393]
[1768067313905,0.19122981,910.54,909.15,0.69575393]
[1768067314205,0.19122981,910.54,909.16,0.69575393]
[1768067314405,0.19122981,910.54,909.17,0.69575393]
[1768067314705,0.19122981,910.54,909.18,0.69575393]
[1768067314910,0.19122981,910.54,909.19,0.69575393]
[1768067315110,0.19122981,910.54,909.2,0.69575393]
[1768067315410,0.19122981,910.54,909.21,0.69575393]
[1768067315606,0.19122981,910.54,909.22,0.69575393]
[1768067315810,0.19122981,910.54,909.23,0.69575393]
[1768067316008,0.19122981,910.54,909.24,0.69575393]
[1768067316304,0.19122981,910.54,909.25,0.69575393]
[1768067316606,0.19122981,910.54,909.26,0.69575393]
[1768067316804,0.19122981,910.54,909.27,0.69575393]
[1768067317005,0.19122981,910.54,909.28,0.69575393]
[1768067317204,0.19122981,910.54,909.29,0.69517637]
[1768067317407,0.19122981,910.54,909.3,0.69517637]
[1768067317610,0.19122981,910.54,909.31,0.69517637]
[1768067317808,0.19122981,910.54,909.32,0.69517637]
[1768067318007,0.19122981,910.54,909.33,0.69517637]
[1768067318207,0.19122981,910.54,909.34,0.69517637]
[1768067318407,0.19122981,910.54,909.1,2.117]
[1768067318408,0.19122981,910.54,909.35,0.69517637]
[1768067318607,0.19122981,910.54,909.1,2.117]
[1768067318908,0.19122981,910.54,909.11,0.6951492]
[1768067319111,0.19122981,910.54,909.12,0.6951492]
[1768067319314,0.19122981,910.54,909.13,0.6951492]
[1768067319508,0.19122981,910.54,909.14,0.6951492]
[1768067319707,0.19122981,910.54,909.15,0.6951492]
[1768067319907,0.19122981,910.54,909.16,0.6951492]
[1768067320212,0.19122981,910.54,909.17,0.6951492]
[1768067320508,0.19122981,910.54,909.18,0.6951492]
[1768067320711,0.19122981,910.54,909.19,0.6951492]
[1768067320910,0.19122981,910.54,909.1,2.117]
[1768067320911,0.19122981,910.54,909.2,0.6951492]
[1768067321110,0.19122981,910.54,909.21,0.6951492]
[1768067321312,0.19122981,910.54,909.22,0.6951492]
[1768067321513,0.19122981,910.54,909.23,0.6951492]
[1768067321813,0.19122981,910.54,909.24,0.6951492]
[1768067322009,0.19122981,910.54,909.25,0.6951492]
[1768067322213,0.19122981,910.54,909.1,2.117]
[1768067322408,0.19122981,910.54,909.11,0.69505086]
[1768067322608,0.19122981,910.54,909.12,0.69505086]
[1768067322812,0.19122981,910.54,909.13,0.69505086]
[1768067323013,0.19122981,910.54,909.14,0.69505086]
[1768067323214,0.19122981,910.54,909.15,0.69505086]
[1768067323414,0.19122981,910.54,909.16,0.69505086]
[1768067323614,0.19122981,910.54,909.17,0.69505086]
[1768067323914,0.19122981,910.54,909.18,0.69505086]
[1768067324209,0.19122981,910.54,909.19,0.69505086]
[1768067324415,0.19122981,910.54,909.2,0.69505086]
[1768067324714,0.19122981,910.54,909.21,0.69505086]
[1768067324914,0.19122981,910.54,909.22,0.69505086]
[1768067325215,0.19122981,910.54,909.23,0.69505086]
[1768067325414,0.19122981,910.54,909.24,0.69505086]
[1768067325614,0.19122981,910.54,909.25,0.69505086]
[1768067325811,0.19122981,910.54,909.26,0.69505086]
[1768067326111,0.19122981,910.54,909.27,0.69505086]
[1768067326315,0.19122981,910.54,909.28,0.69505086]
[1768067326514,0.19122981,910.54,909.29,0.69505086]
[1768067326715,0.19122981,910.54,909.1,2.117]
[1768067327009,0.19122981,910.54,909.11,0.69471437]
[1768067327213,0.19122981,910.54,909.12,0.69471437]
[1768067327411,0.19122981,910.54,909.13,0.69471437]
[1768067327615,0.19122981,910.54,909.14,0.69471437]
[1768067327915,0.19122981,910.54,909.15,0.69471437]
[1768067328116,0.19122981,910.54,909.16,0.69471437]
[1768067328312,0.19122981,910.54,909.17,0.69471437]
[1768067328612,0.19122981,910.54,909.18,0.69471437]
[1768067328912,0.19122981,910.54,909.19,0.69471437]
[1768067329117,0.19122981,910.54,909.2,0.69471437]
[1768067329416,0.19122981,910.54,909.21,0.69471437]
[1768067329716,0.19122981,910.54,909.22,0.69471437]
[1768067329916,0.19122981,910.54,909.23,0.69471437]
[1768067330112,0.19122981,910.54,909.24,0.69471437]
[1768067330316,0.19122981,910.54,909.25,0.69471437]
[1768067330514,0.19122981,910.54,909.26,0.69471437]
[1768067330714,0.19122981,910.54,909.27,0.69471437]
[1768067330920,0.19122981,910.54,909.28,0.69471437]
[1768067331213,0.19122981,910.54,909.29,0.69471437]
[1768067331414,0.19122981,910.54,909.3,0.69471437]
[1768067331611,0.19122981,910.54,909.31,0.69471437]
[1768067331816,0.19122981,910.54,909.32,0.69471437]
[1768067332014,0.19122981,910.54,909.33,0.69471437]
[1768067332218,0.19122981,910.54,909.34,0.69471437]
[1768067332414,0.19122981,910.54,909.35,0.69471437]
[1768067332712,0.19122981,910.54,909.36,0.69471437]
[1768067332915,0.19122981,910.54,909.1,2.117]
[1768067333115,0.19122981,910.54,909.11,0.69465987]
[1768067333314,0.19122981,910.54,909.12,0.69465987]
[1768067333515,0.19122981,910.54,909.13,0.69465987]
[1768067333818,0.19122981,910.54,909.14,0.69465987]
[1768067334017,0.19122981,910.54,909.15,0.69465987]
[1768067334218,0.19122981,910.54,909.16,0.69465987]
[1768067334419,0.19122981,910.54,909.17,0.69465987]
[1768067334618,0.19122981,910.54,909.18,0.69465987]
[1768067334914,0.19122981,910.54,909.19,0.69465987]
[1768067335116,0.19122981,910.54,909.2,0.69465987]
[1768067335318,0.19122981,910.54,909.21,0.69465987]
[1768067335520,0.19122981,910.54,909.22,0.69465987]
[1768067335819,0.19122981,910.54,909.23,0.69465987]
[1768067336016,0.19122981,910.54,909.24,0.69465987]
[1768067336217,0.19122981,910.54,909.25,0.69465987]
[1768067336417,0.19122981,910.54,909.26,0.69465987]
[1768067336716,0.19122981,910.54,909.27,0.69465987]
[1768067336915,0.19122981,910.54,909.28,0.69465987]
[1768067337119,0.19122981,910.54,909.29,0.69465987]
[1768067337321,0.19122981,910.54,909.3,0.69465987]
[1768067337521,0.19122981,910.54,909.31,0.69465987]
[1768067337719,0.19122981,910.54,909.32,0.69465987]
[1768067338017,0.19122981,910.54,909.33,0.69465987]
[1768067338223,0.19122981,910.54,909.34,0.69465987]
[1768067338428,0.19122981,910.54,909.35,0.69465987]
[1768067338624,0.19122981,910.54,909.36,0.69465987]
[1768067338818,0.19122981,910.54,909.37,0.69465987]
[1768067339018,0.19122981,910.54,909.38,0.69465987]
[1768067339221,0.19122981,910.54,909.39,0.69465987]
[1768067339424,0.19122981,910.54,909.4,0.69465987]
[1768067339628,0.19122981,910.54,909.41,0.69465987]
[1768067339824,0.19122981,910.54,909.42,0.69465987]
[1768067340022,0.19122981,910.54,909.43,0.69465987]
[1768067340226,0.19122981,910.54,909.44,0.69465987]
[1768067340526,0.19122981,910.54,909.45,0.69465987]
[1768067340729,0.19122981,910.54,909.46,0.69465987]
[1768067340922,0.19122981,910.54,909.23,1.427]
[1768067341127,0.19122981,910.54,909.24,0.69439038]
[1768067341324,0.19122981,910.54,909.25,0.69439038]
[1768067341625,0.19122981,910.54,909.26,0.69439038]